bitfinex/quotes_SOLUSD_20251124
["timestamp","ask_amount","ask_price","bid_price","bid_amount"]
[1764003491688,0.67,134.13,134.06,18.78971049]
[1764003491689,3.24349097,134.12,134.06,9.93098926]
[1764003491888,0.67,134.13,134.08,3.24349097]
[1764003491889,3.91349097,134.13,134.08,3.24349097]
[1764003492101,0.67,134.12,134.08,3.24349097]
[1764003492491,0.67,134.12,134.08,13.03231866]
[1764003492879,0.67,134.12,134.08,20.49026401]
[1764003493499,0.67,134.12,134.08,9.78882769]
[1764003493708,3.24349097,134.11,134.07,3.24349097]
[1764003494199,0.67,134.1,134.07,3.24349097]
[1764003494393,0.67,134.1,134.07,9.78882769]
[1764003494597,0.67,134.1,134.06,3.24349097]
[1764003494815,3.91349097,134.1,134.06,3.24349097]
[1764003495196,0.67,134.09,134.06,3.24349097]
[1764003495400,0.67,134.09,134.06,10.70282827]
[1764003495597,0.67,134.09,134.06,3.24349097]
[1764003495798,0.67,134.09,134.01,0.68]
[1764003495799,3.24349097,134.08,134.01,0.68]
[1764003496098,3.24349097,134.08,134.03,3.24349097]
[1764003496307,0.67,134.07,134.03,3.24349097]
[1764003496505,3.91349097,134.07,134.03,3.24349097]
[1764003496903,0.67,134.06,134.02,13.03231866]
[1764003497125,0.67,134.06,134.02,20.49380975]
[1764003497417,0.67,134.06,134.04,3.24349097]
[1764003497618,0.67,134.08,134.04,3.24349097]
[1764003498486,3.91349097,134.08,134.04,3.24349097]
[1764003498689,5.74283728,134.08,134.04,5.07283728]
[1764003498887,0.67,134.07,134.04,5.07283728]
[1764003499516,0.67,134.08,134.04,5.75283728]
[1764003499718,0.67,134.07,134.04,5.75283728]
[1764003499899,0.67,134.07,134.04,5.07283728]
[1764003500913,0.67,134.07,134.04,12.53320979]
[1764003501428,0.67,134.09,134.06,5.07283728]
[1764003501636,8.41283728,134.12,134.07,5.07283728]
[1764003501924,0.67,134.11,134.09,5.07283728]
[1764003502088,8.41283728,134.14,134.09,5.07283728]
[1764003502419,8.41283728,134.14,134.07,0.68]
[1764003502420,0.67,134.13,134.1,5.07283728]
[1764003502939,0.67,134.13,134.11,5.07283728]
[1764003504001,0.67,134.13,134.09,9.78882769]
[1764003504228,0.67,134.13,134.1,5.07283728]
[1764003505523,0.67,134.13,134.09,14.86166497]
[1764003505719,0.67,134.13,134.09,9.78882769]
[1764003506025,0.67,134.13,134.09,17.24643098]
[1764003506224,0.67,134.13,134.09,22.31926826]
[1764003506521,5.74283728,134.13,134.09,14.86166497]
[1764003506695,5.74283728,134.13,134.09,9.78882769]
[1764003506895,0.71,134.12,134.09,9.78882769]
[1764003507312,0.71,134.12,134.08,12.53071686]
[1764003507517,5.07283728,134.09,134.06,9.78882769]
[1764003507922,0.71,134.08,134.05,12.53254413]
[1764003508238,5.07283728,134.07,134.02,9.78882769]
[1764003508521,12.11809725,134.06,134.01,12.11809725]
[1764003508703,12.11809725,134.06,134.02,9.78882769]
[1764003508907,12.82809725,134.05,134.0,8.13242435]
[1764003509106,12.82809725,134.05,134.01,9.78882769]
[1764003509304,0.71,134.04,134.0,20.2505216]
[1764003509521,0.71,134.04,134.01,12.11809725]
[1764003510098,0.71,134.06,134.02,12.11809725]
[1764003510303,12.11809725,134.07,134.02,12.11809725]
[1764003510501,0.71,134.06,134.02,12.11809725]
[1764003510818,0.71,134.09,134.05,12.11809725]
[1764003511004,0.71,134.09,134.06,12.11809725]
[1764003512001,1.99999999,134.17,134.06,12.11809725]
[1764003512002,0.71,134.14,134.08,12.11809725]
[1764003512312,0.71,134.13,134.1,12.11809725]
[1764003512508,0.71,134.13,134.09,12.11809725]
[1764003513021,12.11809725,134.12,134.08,12.11809725]
[1764003513239,12.11809725,134.11,134.07,12.11809725]
[1764003513610,0.71,134.1,134.07,12.11809725]
[1764003514419,0.71,134.1,134.08,12.11809725]
[1764003514840,0.71,134.1,134.07,12.11809725]
[1764003516623,0.71,134.1,134.05,17.91850557]
[1764003516810,12.11809725,134.09,134.05,12.11809725]
[1764003517016,12.82809725,134.1,134.05,12.11809725]
[1764003517229,0.71,134.09,134.05,12.11809725]
[1764003518344,0.71,134.09,134.05,22.57692494]
[1764003518656,15.45809725,134.12,134.07,12.11809725]
[1764003518848,12.82809725,134.13,134.09,12.11809725]
[1764003519023,12.11809725,134.13,134.09,12.11809725]
[1764003519225,0.71,134.12,134.09,12.11809725]
[1764003519426,0.71,134.12,134.08,12.11809725]
[1764003520130,12.82809725,134.12,134.07,21.90692494]
[1764003520338,12.11809725,134.11,134.07,21.90692494]
[1764003520522,12.82809725,134.11,134.07,21.90692494]
[1764003520837,12.11809725,134.11,134.07,21.90692494]
[1764003521148,0.71,134.1,134.07,21.90692494]
[1764003521856,12.82809725,134.12,134.07,22.57692494]
[1764003522236,0.71,134.11,134.07,30.03561678]
[1764003522658,0.71,134.11,134.08,12.11809725]
[1764003523158,0.71,134.11,134.07,10.45882769]
[1764003523446,0.71,134.11,134.07,22.57692494]
[1764003524530,0.71,134.11,134.08,12.11809725]
[1764003525225,0.71,134.11,134.07,22.57692494]
[1764003525834,0.71,134.11,134.07,10.45882769]
[1764003526035,0.71,134.11,134.07,22.57692494]
[1764003526433,0.71,134.11,134.08,12.11809725]
[1764003527323,12.11809725,134.09,134.06,9.78882769]
[1764003527537,29.13696125,134.11,134.07,12.78809725]
[1764003527732,17.018864,134.11,134.08,12.11809725]
[1764003527937,0.71,134.11,134.08,12.11809725]
[1764003528136,0.66,134.1,134.07,12.11809725]
[1764003528452,12.11809725,134.09,134.04,30.03718721]
[1764003528627,12.11809725,134.09,134.04,22.57692494]
[1764003528829,0.66,134.08,134.04,22.57692494]
[1764003529257,12.77809725,134.08,134.04,10.45882769]
[1764003529636,0.66,134.08,134.04,22.57692494]
[1764003529839,0.66,134.08,134.05,22.57692494]
[1764003530044,12.11809725,134.09,134.05,22.57692494]
[1764003530765,0.66,134.08,134.05,22.57692494]
[1764003530933,0.66,134.08,134.05,21.90692494]
[1764003531660,12.11809725,134.07,134.02,12.78809725]
[1764003531838,12.11809725,134.06,134.02,0.67]
[1764003532243,12.77809725,134.06,134.02,0.67]
[1764003532645,12.77809725,134.06,133.99,3.34]
[1764003532646,12.11809725,134.04,133.99,12.83809725]
[1764003532940,12.11809725,134.04,134.0,9.78882769]
[1764003533142,0.7,134.03,134.0,9.78882769]
[1764003533460,0.7,134.03,134.0,10.50882769]
[1764003533763,12.11809725,134.04,134.0,22.62692494]
[1764003534072,0.7,134.04,134.0,22.62692494]
[1764003534240,12.81809725,134.04,134.0,10.50882769]
[1764003534436,0.7,134.04,134.0,9.78882769]
[1764003534636,12.11809725,134.06,134.01,20.30006618]
[1764003534858,0.7,134.06,134.02,12.83809725]
[1764003535550,16.15809725,134.08,134.04,12.11809725]
[1764003535744,0.7,134.07,134.03,22.62692494]
[1764003536656,0.7,134.07,134.03,10.50882769]
[1764003536853,0.7,134.07,134.03,22.62692494]
[1764003537053,0.7,134.09,134.05,21.90692494]
[1764003537236,12.81809725,134.11,134.06,12.11809725]
[1764003537436,0.7,134.11,134.07,12.11809725]
[1764003537681,0.7,134.1,134.07,12.11809725]
[1764003538456,0.7,134.1,134.07,12.83809725]
[1764003538772,12.81809725,134.12,134.07,20.29686786]
[1764003538945,12.81809725,134.12,134.07,12.11809725]
[1764003539147,0.7,134.11,134.07,12.11809725]
[1764003539547,0.7,134.11,134.07,12.83809725]
[1764003540671,0.7,134.11,134.07,0.72]
[1764003540857,12.81809725,134.11,134.06,12.11809725]
[1764003541059,0.7,134.11,134.07,22.62692494]
[1764003541252,0.7,134.11,134.08,12.11809725]
[1764003541766,0.7,134.11,134.07,22.62692494]
[1764003542845,12.11809725,134.12,134.07,21.90692494]
[1764003543047,12.11809725,134.12,134.08,12.83809725]
[1764003543048,0.7,134.12,134.08,12.83809725]
[1764003543443,3.34,134.13,134.1,12.11809725]
[1764003543953,4.04,134.13,134.1,12.11809725]
[1764003544273,4.04,134.13,134.09,12.83809725]
[1764003544476,12.11809725,134.12,134.06,7.45899629]
[1764003544676,12.11809725,134.11,134.06,19.57709354]
[1764003544864,12.81809725,134.11,134.06,19.57709354]
[1764003545176,0.7,134.11,134.07,12.83809725]
[1764003546174,3.34,134.13,134.08,22.62692494]
[1764003546485,0.7,134.14,134.1,21.90692494]
[1764003546853,12.11809725,134.12,134.06,0.72]
[1764003547080,12.11809725,134.12,134.07,12.11809725]
[1764003547260,12.81809725,134.12,134.07,12.11809725]
[1764003547451,0.7,134.11,134.07,0.72]
[1764003547650,12.81809725,134.11,134.07,0.72]
[1764003547875,12.81809725,134.11,134.06,16.17809725]
[1764003548052,0.7,134.1,134.06,4.06]
[1764003548385,0.7,134.1,134.06,12.83809725]
[1764003548592,12.81809725,134.12,134.07,22.62692494]
[1764003548752,12.11809725,134.11,134.07,10.50882769]
[1764003548953,12.81809725,134.11,134.07,10.50882769]
[1764003549161,0.7,134.1,134.07,9.78882769]
[1764003549453,12.81809725,134.1,134.05,19.57781325]
[1764003549681,12.81809725,134.1,134.06,9.78882769]
[1764003549891,12.81809725,134.09,134.05,10.50882769]
[1764003550050,12.81809725,134.09,134.04,13.12882769]
[1764003550253,0.7,134.08,134.04,25.96692494]
[1764003550675,0.7,134.08,134.04,18.92142797]
[1764003551179,0.7,134.08,134.04,26.38184119]
[1764003551354,0.7,134.08,134.04,15.58142797]
[1764003551552,5.77260028,134.08,134.04,10.50882769]
[1764003552195,5.77260028,134.08,134.04,0.72]
[1764003552351,0.7,134.08,134.04,15.58142797]
[1764003552982,5.77260028,134.08,134.02,23.7702621]
[1764003553285,5.07260028,134.05,134.01,9.78882769]
[1764003553692,0.7,134.04,134.01,14.86142797]
[1764003553866,0.7,134.04,134.01,15.58142797]
[1764003554189,8.41260028,134.08,134.03,5.07260028]
[1764003554497,0.7,134.07,134.03,9.78882769]
[1764003554656,0.7,134.07,134.03,22.6228623]
[1764003555184,0.7,134.07,134.03,30.08386942]
[1764003556287,0.7,134.07,134.03,21.9028623]
[1764003556470,0.7,134.07,134.03,22.6228623]
[1764003557286,12.11403461,134.04,134.0,16.308864]
[1764003557788,12.81403461,134.04,134.0,17.028864]
[1764003559584,12.81403461,134.04,134.03,16.308864]
[1764003560178,12.81403461,134.04,134.02,16.308864]
[1764003560575,8.4353943,134.04,134.02,16.308864]
[1764003561196,0.7,134.04,134.02,16.308864]
[1764003561787,0.7,134.04,134.0,32.22689938]
[1764003562668,8.4353943,134.04,134.0,24.49150508]
[1764003563186,8.4453943,134.05,134.01,0.69]
[1764003563358,0.71,134.04,134.01,0.69]
[1764003563681,0.71,134.04,134.0,31.50689938]
[1764003563874,0.71,134.04,134.0,24.46150508]
[1764003564262,7.7353943,134.05,134.01,0.69]
[1764003564469,8.4453943,134.05,134.01,0.69]
[1764003564869,0.71,134.04,134.01,0.69]
[1764003566171,0.71,134.04,134.0,15.88803538]
[1764003566571,8.4453943,134.04,134.0,8.15264108]
[1764003567395,7.7353943,134.03,133.96,0.1]
[1764003567572,7.7353943,134.0,133.96,8.25456364]
[1764003567766,7.7353943,134.01,133.97,9.78882769]
[1764003567967,7.7353943,134.01,133.96,15.98995794]
[1764003567968,7.7353943,133.98,133.96,0.1]
[1764003568585,0.71,133.97,133.96,0.1]
[1764003568797,8.4453943,133.98,133.96,0.1]
[1764003569000,7.7353943,133.98,133.96,0.1]
[1764003569205,0.71,133.97,133.96,0.1]
[1764003569988,0.71,133.99,133.96,0.1]
[1764003570309,3.34,134.01,133.96,9.88882769]
[1764003570599,8.4453943,134.0,133.96,10.57882769]
[1764003570970,0.71,133.99,133.96,0.1]
[1764003571172,8.4453943,133.99,133.96,0.1]
[1764003571602,0.71,133.98,133.96,0.1]
[1764003572301,8.4453943,133.98,133.96,0.1]
[1764003572807,0.71,133.97,133.96,0.1]
[1764003575183,3.9617345,133.97,133.96,0.1]
[1764003577384,7.3017345,133.97,133.96,0.1]
[1764003579775,4.05,133.97,133.96,0.1]
[1764003579975,7.3017345,133.97,133.96,0.1]
[1764003581377,3.9617345,133.97,133.96,0.1]
[1764003581572,6.5917345,133.98,133.96,0.1]
[1764003581776,3.9617345,133.99,133.96,0.1]
[1764003582012,7.3017345,133.99,133.96,0.1]
[1764003582176,0.71,133.98,133.96,0.1]
[1764003583007,3.9617345,133.98,133.96,0.1]
[1764003583407,0.71,133.98,133.96,0.1]
[1764003583711,6.5917345,133.99,133.96,0.1]
[1764003583712,3.9617345,133.97,133.96,0.1]
[1764003584481,0.71,133.97,133.96,0.1]
[1764003585908,3.9617345,133.97,133.96,0.1]
[1764003587507,20.2705985,133.97,133.96,0.1]
[1764003592192,3.9617345,133.97,133.96,0.1]
[1764003592596,7.3017345,133.97,133.96,0.1]
[1764003593520,23.6105985,133.97,133.96,0.1]
[1764003596315,7.3017345,133.97,133.96,0.1]
[1764003596619,23.6105985,133.97,133.96,0.1]
[1764003599920,23.75276007,133.97,133.96,0.1]
[1764003600220,20.50102557,133.97,133.95,0.1]
[1764003600534,0.69,133.96,133.95,0.1]
[1764003600726,4.03,133.96,133.95,0.1]
[1764003600892,7.28310245,133.96,133.95,0.1]
[1764003601642,0.69,133.98,133.95,0.1]
[1764003601921,6.59310245,133.97,133.95,0.81]
[1764003602123,3.25310245,134.0,133.95,0.81]
[1764003602306,3.25310245,134.01,133.96,9.78882769]
[1764003602628,6.59310245,134.02,133.98,9.78882769]
[1764003602820,22.90196645,134.02,133.98,9.78882769]
[1764003603008,22.90196645,134.02,133.99,0.71]
[1764003603205,6.59310245,134.02,133.99,0.71]
[1764003603610,3.34,134.02,133.99,0.71]
[1764003603811,3.25310245,134.06,134.0,13.18409171]
[1764003604010,6.59310245,134.06,134.01,0.71]
[1764003604707,3.25310245,134.09,134.03,3.25310245]
[1764003605028,6.59310245,134.1,134.04,9.93098926]
[1764003605233,3.25310245,134.05,134.02,0.71]
[1764003605801,3.25310245,134.04,134.02,0.71]
[1764003606002,3.25310245,134.03,134.0,0.71]
[1764003606413,3.25310245,134.02,134.0,0.71]
[1764003606601,3.25310245,134.01,133.97,10.49882769]
[1764003606800,3.34,134.03,133.97,10.49882769]
[1764003607108,3.34,134.03,133.98,0.71]
[1764003607517,4.03,134.03,133.98,0.71]
[1764003609106,3.34,134.03,133.98,0.71]
[1764003609328,4.03,134.03,133.98,0.71]
[1764003610401,3.25310245,134.04,133.99,3.25310245]
[1764003610601,3.25310245,134.03,133.98,0.71]
[1764003610836,3.25310245,134.03,133.99,0.71]
[1764003611024,3.25310245,134.04,133.99,3.96310245]
[1764003611230,6.59310245,134.05,134.0,3.25310245]
[1764003611434,0.69,134.09,134.01,13.04193014]
[1764003611611,3.25310245,134.06,134.01,13.75193014]
[1764003611824,3.25310245,134.05,134.02,0.71]
[1764003612632,3.25310245,134.03,133.99,0.71]
[1764003612829,4.03,134.04,133.99,0.71]
[1764003613058,3.25310245,134.02,133.99,0.71]
[1764003613231,3.25310245,134.03,133.99,0.71]
[1764003613547,6.59310245,134.05,134.01,3.25310245]
[1764003613735,3.34,134.05,134.0,3.25310245]
[1764003614051,6.59310245,134.05,134.0,3.25310245]
[1764003614235,6.59310245,134.05,134.01,0.71]
[1764003614849,3.25310245,134.03,133.98,0.71]
[1764003615050,3.25310245,134.03,133.99,0.71]
[1764003615347,3.25310245,134.04,133.99,3.96310245]
[1764003615531,0.69,134.09,134.03,3.25310245]
[1764003615854,3.25310245,134.09,134.04,3.25310245]
[1764003616045,6.59310245,134.1,134.05,3.25310245]
[1764003616550,6.59310245,134.1,134.06,0.71]
[1764003616741,4.03,134.11,134.06,3.96310245]
[1764003617126,3.25310245,134.1,134.06,0.71]
[1764003617538,3.25310245,134.12,134.07,3.25310245]
[1764003617724,6.59310245,134.13,134.08,3.25310245]
[1764003617935,3.94310245,134.14,134.1,3.25310245]
[1764003618121,3.25310245,134.11,134.06,3.25310245]
[1764003618320,3.25310245,134.09,134.03,0.14216157]
[1764003618524,3.25310245,134.09,134.04,3.96310245]
[1764003619027,3.25310245,134.1,134.05,3.96310245]
[1764003619363,16.308864,134.12,134.06,3.25310245]
[1764003619671,0.69,134.18,134.15,16.308864]
[1764003619958,3.25310245,134.16,134.11,13.04193014]
[1764003620135,3.25310245,134.15,134.11,9.93098926]
[1764003620330,3.94310245,134.14,134.1,16.308864]
[1764003620577,12.10592422,134.13,134.08,21.89475191]
[1764003620856,0.69,134.16,134.11,16.308864]
[1764003621061,12.79592422,134.16,134.12,12.10592422]
[1764003621278,0.69,134.16,134.12,12.10592422]
[1764003621434,0.69,134.15,134.11,28.41478822]
[1764003621974,0.69,134.15,134.12,12.10592422]
[1764003622142,12.10592422,134.13,134.08,9.78882769]
[1764003622346,12.10592422,134.13,134.07,16.308864]
[1764003622347,12.10592422,134.1,134.07,16.308864]
[1764003622745,0.72,134.12,134.07,16.308864]
[1764003622746,0.72,134.12,134.07,28.41478822]
[1764003622960,12.82592422,134.12,134.07,28.41478822]
[1764003623452,0.72,134.12,134.08,12.10592422]
[1764003623657,12.10592422,134.14,134.09,12.10592422]
[1764003623857,12.82592422,134.14,134.09,12.10592422]
[1764003624064,12.82592422,134.13,134.08,21.89475191]
[1764003624259,12.10592422,134.12,134.08,9.78882769]
[1764003624472,12.82592422,134.12,134.07,12.10592422]
[1764003624655,0.72,134.11,134.07,12.10592422]
[1764003625366,17.028864,134.13,134.1,12.10592422]
[1764003625671,12.82592422,134.14,134.1,12.10592422]
[1764003625875,12.10592422,134.17,134.12,12.10592422]
[1764003626049,0.72,134.16,134.12,12.10592422]
[1764003626250,3.34,134.17,134.13,12.10592422]
[1764003626251,0.72,134.17,134.13,12.10592422]
[1764003626555,0.72,134.17,134.14,12.10592422]
[1764003626753,0.72,134.19,134.16,12.10592422]
[1764003626954,0.72,134.19,134.15,12.10592422]
[1764003627279,12.20592422,134.2,134.16,12.10592422]
[1764003627280,0.1,134.2,134.16,12.10592422]
[1764003627484,0.1,134.2,134.17,12.10592422]
[1764003627659,0.82,134.2,134.12,9.93098926]
[1764003627855,0.82,134.2,134.16,12.10592422]
[1764003628465,12.10592422,134.19,134.12,7.45580018]
[1764003628673,0.82,134.2,134.13,12.10592422]
[1764003628674,12.10592422,134.18,134.13,12.10592422]
[1764003628980,0.72,134.17,134.13,12.10592422]
[1764003630168,0.72,134.17,134.12,17.24474045]
[1764003630456,12.10592422,134.16,134.11,12.10592422]
[1764003630655,0.72,134.15,134.11,21.89475191]
[1764003630883,12.10592422,134.16,134.12,12.10592422]
[1764003630884,0.72,134.16,134.12,12.10592422]
[1764003631269,0.72,134.16,134.13,12.10592422]
[1764003632487,16.14592422,134.18,134.13,19.56130211]
[1764003632785,0.72,134.17,134.14,12.10592422]
[1764003632981,4.04,134.18,134.14,12.10592422]
[1764003633480,4.04,134.18,134.13,9.78882769]
[1764003633481,12.82592422,134.17,134.13,9.78882769]
[1764003633856,15.42592422,134.18,134.13,17.24415872]
[1764003634065,16.408864,134.2,134.16,12.10592422]
[1764003634276,0.72,134.19,134.14,9.93098926]
[1764003634462,12.82592422,134.19,134.14,22.03691348]
[1764003634789,0.1,134.2,134.18,12.10592422]
[1764003635858,12.92592422,134.2,134.15,12.10592422]
[1764003636157,12.92592422,134.2,134.15,21.89475191]
[1764003636585,0.82,134.2,134.15,21.89475191]
[1764003636890,0.82,134.2,134.16,12.10592422]
[1764003638391,12.92592422,134.2,134.15,21.89475191]
[1764003638753,12.82592422,134.19,134.14,19.5606321]
[1764003638956,0.72,134.19,134.14,12.10592422]
[1764003639153,0.72,134.18,134.14,12.10592422]
[1764003639764,0.72,134.18,134.14,19.5606723]
[1764003640465,0.72,134.18,134.15,12.10592422]
[1764003641510,0.72,134.18,134.13,9.78882769]
[1764003641511,12.10592422,134.17,134.13,9.78882769]
[1764003641990,0.1,134.2,134.16,12.10592422]
[1764003642198,0.1,134.2,134.19,19.55804434]
[1764003643071,0.1,134.2,134.19,12.10592422]
[1764003643279,0.1,134.2,134.19,19.55804434]
[1764003643677,0.1,134.2,134.19,12.10592422]
[1764003644196,0.82,134.2,134.16,12.10592422]
[1764003644367,0.82,134.2,134.15,12.10592422]
[1764003644768,12.92592422,134.2,134.14,28.41478822]
[1764003644969,12.92592422,134.2,134.11,50.0]
[1764003644970,12.10592422,134.17,134.11,19.5623612]
[1764003645171,12.10592422,134.17,134.11,38.20377496]
[1764003645374,0.72,134.18,134.14,12.10592422]
[1764003645692,0.72,134.18,134.13,12.10592422]
[1764003645864,16.308864,134.19,134.15,12.10592422]
[1764003646192,0.72,134.18,134.13,26.09289362]
[1764003646410,0.1,134.2,134.16,12.10592422]
[1764003646567,0.1,134.2,134.18,12.10592422]
[1764003646767,0.1,134.2,134.16,12.10592422]
[1764003647172,0.79,134.2,134.16,12.10592422]
[1764003647469,12.10592422,134.19,134.14,16.308864]
[1764003647666,0.79,134.2,134.13,19.56137788]
[1764003647667,12.10592422,134.18,134.13,19.56137788]
[1764003647886,0.69,134.17,134.13,19.56137788]
[1764003648077,12.79592422,134.17,134.12,19.56177459]
[1764003648374,0.69,134.17,134.12,19.56177459]
[1764003649795,0.69,134.17,134.13,12.10592422]
[1764003650178,0.69,134.19,134.14,12.10592422]
[1764003650586,0.69,134.19,134.14,19.56076644]
[1764003650760,12.79592422,134.19,134.14,19.56076644]
[1764003651279,12.10592422,134.17,134.12,12.10592422]
[1764003651687,0.69,134.16,134.12,12.10592422]
[1764003651882,12.79592422,134.16,134.11,19.5622476]
[1764003652201,12.79592422,134.16,134.1,28.41478822]
[1764003652498,12.79592422,134.15,134.1,16.308864]
[1764003652697,0.69,134.15,134.1,35.87154914]
[1764003652992,0.67,134.14,134.11,12.10592422]
[1764003653369,0.67,134.17,134.1,42.40842879]
[1764003653575,12.77592422,134.17,134.12,12.10592422]
[1764003653877,12.77592422,134.17,134.1,42.40842879]
[1764003654084,12.77592422,134.17,134.12,12.10592422]
[1764003654281,12.10592422,134.17,134.1,42.40842879]
[1764003654487,12.10592422,134.17,134.12,12.10592422]
[1764003654690,0.67,134.16,134.12,12.10592422]
[1764003654899,0.67,134.16,134.13,12.10592422]
[1764003655396,0.1,134.2,134.15,12.10592422]
[1764003655579,0.1,134.2,134.17,12.10592422]
[1764003655780,0.77,134.2,134.17,12.10592422]
[1764003655991,0.77,134.2,134.16,12.10592422]
[1764003656607,0.77,134.2,134.16,19.55970819]
[1764003657590,12.87592422,134.2,134.15,3.32]
[1764003657802,12.87592422,134.2,134.14,19.560604]
[1764003658022,10.45882769,134.19,134.14,19.560604]
[1764003658312,0.67,134.19,134.16,12.10592422]
[1764003658675,0.67,134.19,134.16,19.55953746]
[1764003660200,0.67,134.19,134.16,7.45361324]
[1764003660386,0.67,134.19,134.15,19.56005051]
[1764003660601,0.67,134.19,134.14,7.45479911]
[1764003660788,12.77592422,134.19,134.13,10.77518995]
[1764003660988,12.77592422,134.19,134.13,19.56111417]
[1764003661306,12.10592422,134.14,134.06,7.45934656]
[1764003661494,12.10592422,134.15,134.1,12.10592422]
[1764003661807,0.67,134.16,134.1,12.10592422]
[1764003661984,0.67,134.16,134.11,12.10592422]
[1764003662311,0.1,134.2,134.15,28.41478822]
[1764003662607,0.1,134.2,134.19,12.10592422]
[1764003662782,0.1,134.2,134.19,19.55804434]
[1764003663204,0.1,134.2,134.18,7.45247135]
[1764003663701,0.1,134.2,134.18,19.55839557]
[1764003663891,0.1,134.2,134.18,7.45247135]
[1764003664088,0.1,134.2,134.18,19.55839557]
[1764003664784,0.1,134.2,134.19,12.10592422]
[1764003665605,1e-08,134.2,134.19,100.30954013]
[1764003665903,1e-08,134.2,134.19,38.20361591]
[1764003666102,1e-08,134.2,134.19,88.34577748]
[1764003666401,1e-08,134.22,134.21,76.09769169]
[1764003666608,1e-08,134.22,134.21,88.34577748]
[1764003666804,1e-08,134.22,134.21,95.79678709]
[1764003666975,1e-08,134.22,134.21,117.84758374]
[1764003667476,1e-08,134.22,134.21,95.79678709]
[1764003668602,1e-08,134.23,134.22,0.14216157]
[1764003668805,1e-08,134.23,134.22,32.80736795]
[1764003670690,1e-08,134.23,134.22,39.18524269]
[1764003674396,1e-08,134.23,134.22,82.80736795]
[1764003675392,0.1,134.24,134.23,9.93098926]
[1764003675393,1e-08,134.24,134.23,9.93098926]
[1764003675596,1e-08,134.24,134.23,10.6759792]
[1764003675814,1e-08,134.24,134.23,22.78190342]
[1764003676116,1e-08,134.24,134.23,45.20190342]
[1764003676324,1e-08,134.24,134.23,22.78190342]
[1764003676529,1e-08,134.24,134.22,57.45045447]
[1764003676530,0.67000001,134.24,134.22,7.45045447]
[1764003677691,0.67000001,134.24,134.19,0.88737358]
[1764003677692,0.67000001,134.24,134.19,7.45176006]
[1764003677901,12.77592423,134.24,134.19,7.45176006]
[1764003678304,12.77592422,134.23,134.18,10.77264912]
[1764003678594,12.10592422,134.22,134.18,3.32]
[1764003678905,12.77592422,134.22,134.18,10.77264594]
[1764003679107,0.67,134.21,134.18,10.77264594]
[1764003679422,0.67,134.21,134.18,3.32]
[1764003679587,0.67,134.21,134.18,19.628864]
[1764003679792,0.67,134.21,134.18,10.77258984]
[1764003682019,0.67,134.23,134.18,37.11843653]
[1764003682318,1e-08,134.24,134.19,7.71415792]
[1764003682509,1e-08,134.24,134.2,3.32]
[1764003682826,1e-08,134.24,134.2,27.34302192]
[1764003683160,1e-08,134.24,134.21,26.07853363]
[1764003684115,1e-08,134.24,134.22,3.32]
[1764003685511,1e-08,134.24,134.22,10.77007714]
[1764003686089,1e-08,134.24,134.23,17.50298561]
[1764003686944,1e-08,134.24,134.22,10.77007714]
[1764003688252,1e-08,134.24,134.22,18.48423506]
[1764003689572,1e-08,134.24,134.22,10.77007714]
[1764003689841,1e-08,134.24,134.22,16.308864]
[1764003689842,0.7,134.23,134.22,16.308864]
[1764003690432,1e-08,134.24,134.22,24.02302192]
[1764003690654,1e-08,134.24,134.23,7.44989942]
[1764003691018,0.70000001,134.24,134.23,7.44989942]
[1764003691546,0.70000001,134.24,134.21,3.32]
[1764003691717,8.41415793,134.24,134.19,3.32]
[1764003692115,0.7,134.23,134.19,3.32]
[1764003692754,0.7,134.23,134.2,7.45156482]
[1764003694853,0.7,134.23,134.19,10.77187988]
[1764003696356,0.7,134.23,134.19,37.11633812]
[1764003696731,0.7,134.23,134.19,29.4021802]
[1764003697040,0.7,134.23,134.19,10.77187988]
[1764003697259,8.41415792,134.23,134.19,10.77187988]
[1764003697447,7.71415792,134.2,134.12,9.78882769]